bitfinex/quotes_ETHUSD_20250420
["timestamp","ask_amount","ask_price","bid_price","bid_amount"]
[1745186051574,2.38360252,1585.5,1585.4,0.16468127]
[1745186051778,2.38360252,1585.5,1585.3,59.317]
[1745186051974,2.38360252,1585.5,1585.4,0.16468127]
[1745186052174,2.38360252,1585.5,1585.3,59.317]
[1745186052382,2.38360252,1585.5,1585.4,0.16468127]
[1745186052679,2.38360252,1585.5,1585.3,59.317]
[1745186052977,2.38360252,1585.5,1585.4,0.16468127]
[1745186053177,2.38360252,1585.5,1585.3,59.317]
[1745186053382,2.38360252,1585.5,1585.4,0.16468127]
[1745186053747,2.38360252,1585.5,1585.3,59.317]
[1745186053948,2.38360252,1585.5,1585.4,0.16468127]
[1745186054476,2.38360252,1585.5,1585.4,5.294]
[1745186054774,2.38360252,1585.5,1585.4,5.45868127]
[1745186059188,2.38360252,1585.5,1585.4,59.47168127]
[1745186064099,2.38360252,1585.5,1585.4,60.28848127]
[1745186064263,2.38360252,1585.5,1585.4,59.47168127]
[1745186065708,0.7836,1585.6,1585.4,59.47168127]
[1745186065869,2.38360252,1585.7,1585.4,59.47168127]
[1745186067381,2.70032277,1585.7,1585.4,59.47168127]
[1745186068005,0.7694,1585.6,1585.4,59.47168127]
[1745186068299,2.38360252,1585.7,1585.4,59.47168127]
[1745186074206,2.38360252,1585.7,1585.5,5.294]
[1745186074707,2.38360252,1585.7,1585.6,0.16223042]
[1745186078987,2.38360252,1585.7,1585.6,54.17523042]
[1745186088685,2.38360252,1585.7,1585.6,59.46723042]
[1745186096919,3.14060252,1585.7,1585.6,59.46723042]
[1745186114158,4.2470038,1585.9,1585.6,59.46723042]
[1745186114358,4.2470038,1585.9,1585.7,0.06305373]
[1745186114517,4.2470038,1585.9,1585.8,0.16081176]
[1745186114717,4.2470038,1585.9,1585.8,0.97971176]
[1745186118878,2.38360252,1586.1,1585.8,0.97971176]
[1745186125635,2.38360252,1585.9,1585.8,0.97971176]
[1745186129375,2.38360252,1585.9,1585.8,0.16081176]
[1745186131275,3.17870252,1585.9,1585.8,0.16081176]
[1745186137282,3.17870252,1585.9,1585.6,60.1235]
[1745186137787,3.17870252,1585.9,1585.7,0.15371979]
[1745186137987,3.17870252,1585.9,1585.6,60.1235]
[1745186138283,3.17870252,1585.9,1585.7,0.15371979]
[1745186138682,3.17870252,1585.9,1585.6,60.1235]
[1745186138981,3.17870252,1585.9,1585.8,0.15371979]
[1745186139161,3.17870252,1585.9,1585.6,60.1235]
[1745186139357,2.38360252,1585.9,1585.8,0.15371979]
[1745186139562,2.38360252,1585.9,1585.6,60.1235]
[1745186140086,2.38360252,1585.9,1585.7,0.15371979]
[1745186140487,2.38360252,1585.9,1585.6,60.1235]
[1745186140687,2.38360252,1585.9,1585.8,0.15371979]
[1745186140876,2.38360252,1585.9,1585.6,60.1235]
[1745186141186,2.38360252,1585.9,1585.8,0.15371979]
[1745186141382,2.38360252,1585.9,1585.7,0.15462221]
[1745186141683,2.38360252,1585.9,1585.8,0.15462221]
[1745186142050,2.38360252,1585.9,1585.6,60.1235]
[1745186142251,2.38360252,1585.9,1585.7,0.15462221]
[1745186142451,2.38360252,1585.9,1585.6,60.1235]
[1745186142676,2.38360252,1585.9,1585.7,0.15410649]
[1745186142984,2.38360252,1585.9,1585.6,60.1235]
[1745186143392,2.38360252,1585.9,1585.7,0.15410649]
[1745186143690,2.38360252,1585.9,1585.6,60.1235]
[1745186143866,2.38360252,1585.9,1585.8,0.15410649]
[1745186144181,2.38360252,1585.9,1585.6,60.1235]
[1745186144383,2.38360252,1585.9,1585.8,0.15410649]
[1745186144687,2.38360252,1585.9,1585.8,5.44210649]
[1745186144984,2.38360252,1585.9,1585.8,5.288]
[1745186145286,2.38360252,1585.9,1585.8,5.44210649]
[1745186148056,2.38360252,1585.9,1585.8,6.22540649]
[1745186153814,2.38360252,1585.9,1585.8,5.44210649]
[1745186155210,2.38360252,1585.9,1585.8,6.22540649]
[1745186159211,2.38360252,1585.9,1585.8,60.22840649]
[1745186160320,2.38360252,1585.9,1585.8,59.44510649]
[1745186161211,3.20870252,1586.1,1585.8,59.44510649]
[1745186164831,0.8251,1586.1,1585.9,0.06304543]
[1745186165018,0.8251,1586.1,1586.0,0.15243058]
[1745186165019,3.20870252,1586.1,1586.0,0.15243058]
[1745186166633,2.38360252,1586.1,1586.0,0.15243058]
[1745186168650,2.38360252,1586.1,1586.0,5.43943058]
[1745186170722,3.19040252,1586.2,1586.0,5.43943058]
[1745186171625,2.38360252,1586.2,1586.0,5.43943058]
[1745186174651,2.38360252,1586.2,1586.1,53.998]
[1745186174858,2.38360252,1586.2,1586.1,54.14733678]
[1745186188975,2.38360252,1586.2,1586.1,59.43233678]
[1745186204680,0.8068,1586.3,1586.1,59.43233678]
[1745186207394,1.12584025,1586.3,1586.1,59.43233678]
[1745186207891,2.38360252,1586.2,1586.1,59.43233678]
[1745186210797,3.15220252,1586.2,1586.1,59.43233678]
[1745186222933,3.70220252,1586.2,1586.1,59.43233678]
[1745186223420,3.78101468,1586.2,1586.1,59.43233678]
[1745186223724,4.19102017,1586.2,1586.1,59.43233678]
[1745186224406,4.11220801,1586.2,1586.1,59.43233678]
[1745186227820,10.25220801,1586.2,1586.1,59.43233678]
[1745186228350,10.25220801,1586.2,1586.1,59.283]
[1745186228836,13.25220801,1586.2,1586.1,59.41934083]
[1745186229216,19.55658324,1586.2,1586.1,59.41934083]
[1745186231551,13.25220801,1586.2,1586.1,59.41934083]
[1745186232320,13.25220801,1586.2,1586.1,59.283]
[1745186232557,13.25220801,1586.2,1586.1,59.4201143]
[1745186233052,19.55658324,1586.2,1586.1,59.4201143]
[1745186238068,19.55658324,1586.2,1586.1,5.4221143]
[1745186246044,0.55,1585.9,1585.8,54.004]
[1745186246244,3.69796056,1585.9,1585.8,59.286]
[1745186248288,3.61913539,1585.9,1585.8,59.286]
[1745186248459,2.93360252,1585.9,1585.8,59.286]
[1745186249789,3.41576763,1585.9,1585.8,59.286]
[1745186253181,9.72133544,1585.9,1585.8,59.286]
[1745186253678,9.80016089,1585.9,1585.8,59.286]
[1745186253848,9.80016089,1585.9,1585.8,59.40676803]
[1745186258257,11.48873985,1585.9,1585.8,59.40676803]
[1745186258655,16.87234237,1585.9,1585.8,59.40676803]
[1745186258960,23.76381692,1585.9,1585.8,59.40676803]
[1745186259160,24.09148369,1585.9,1585.8,59.286]
[1745186259357,6.85699752,1585.6,1585.5,54.01]
[1745186259562,9.31944168,1585.6,1585.5,59.41276803]
[1745186259756,13.96507224,1585.6,1585.5,59.41276803]
[1745186259957,13.8862306,1585.6,1585.5,59.41276803]
[1745186261188,14.7165306,1585.6,1585.5,59.41276803]
[1745186263690,8.40953308,1585.6,1585.5,59.41276803]
[1745186263891,8.48837476,1585.6,1585.5,59.41276803]
[1745186269297,14.7951356,1585.6,1585.5,59.41276803]
[1745186269461,14.71629392,1585.6,1585.5,59.41276803]
[1745186272598,8.40953308,1585.6,1585.5,59.41276803]
[1745186272804,8.48837595,1585.6,1585.5,59.41276803]
[1745186275282,8.48837595,1585.6,1585.5,59.292]
[1745186275601,8.48837595,1585.6,1585.5,59.42553629]
[1745186278388,8.48837595,1585.6,1585.5,5.41553629]
[1745186279412,14.79513679,1585.6,1585.5,5.41553629]
[1745186279612,14.71629392,1585.6,1585.5,5.41553629]
[1745186282014,7.57923308,1585.6,1585.5,5.41553629]
[1745186282177,7.65807754,1585.6,1585.5,5.41553629]
[1745186282375,13.96483838,1585.6,1585.5,5.41553629]
[1745186282713,14.69849392,1585.6,1585.5,5.41553629]
[1745186282917,20.83849392,1585.6,1585.5,5.41553629]
[1745186283414,10.67925645,1585.4,1585.3,54.024]
[1745186283600,0.55,1585.0,1584.9,54.024]
[1745186283917,6.01247491,1585.0,1584.9,5.281]
[1745186284828,6.48171788,1585.0,1584.9,5.281]
[1745186285886,18.93086614,1585.0,1584.9,5.281]
[1745186286230,22.27985065,1585.0,1584.9,5.281]
[1745186287929,15.97070239,1585.0,1584.9,5.281]
[1745186292225,15.14900239,1585.0,1584.9,5.281]
[1745186292525,12.54284549,1585.0,1584.9,5.281]
[1745186298140,12.54284549,1585.0,1584.9,5.40005509]
[1745186311748,12.54284549,1585.0,1584.9,5.281]
[1745186311951,12.54284549,1585.0,1584.9,5.39992601]
[1745186313719,11.99284549,1585.0,1584.9,6.18612601]
[1745186313916,0.46924297,1585.0,1584.9,6.18612601]
[1745186314246,2.38360252,1585.1,1584.9,6.18612601]
[1745186314639,2.38360252,1585.1,1584.9,5.39992601]
[1745186314843,2.38360252,1585.1,1585.0,0.7862]
[1745186315347,2.38360252,1585.1,1585.0,0.91132062]
[1745186315748,2.46246351,1585.3,1585.0,0.91132062]
[1745186316055,2.86302954,1585.3,1585.0,0.91132062]
[1745186316760,2.86302954,1585.3,1585.0,0.97440411]
[1745186317348,2.86302954,1585.3,1585.0,0.91132062]
[1745186317652,2.86302954,1585.3,1585.0,0.97440395]
[1745186317956,2.86302954,1585.3,1585.0,0.91132062]
[1745186318440,2.86302954,1585.3,1585.0,0.97440413]
[1745186318632,2.86302954,1585.3,1585.0,0.97440423]
[1745186319058,2.86302954,1585.3,1585.0,0.84928361]
[1745186320060,2.86302954,1585.3,1585.0,0.7862]
[1745186322561,2.86302954,1585.3,1585.0,0.84928246]
[1745186322860,2.86302954,1585.3,1585.0,0.7862]
[1745186325635,3.21221788,1585.3,1585.0,0.7862]
[1745186326837,3.21221788,1585.3,1585.0,0.84928254]
[1745186327041,2.86302954,1585.3,1585.0,0.7862]
[1745186327338,2.86302954,1585.3,1585.0,0.84928211]
[1745186327629,2.86302954,1585.3,1585.0,0.7862]
[1745186331628,2.86302954,1585.3,1585.1,54.034]
[1745186336427,2.86302954,1585.3,1585.2,5.278]
[1745186336657,3.21221788,1585.3,1585.2,5.278]
[1745186346884,0.55,1585.2,1585.1,54.034]
[1745186347052,0.62886158,1585.2,1585.1,59.312]
[1745186347248,10.75641383,1585.2,1585.1,59.312]
[1745186347448,13.14001635,1585.2,1585.1,59.312]
[1745186347690,15.32719019,1585.2,1585.1,59.312]
[1745186347891,7.63894441,1584.9,1584.8,54.03]
[1745186348081,10.10142689,1584.9,1584.8,59.308]
[1745186348384,15.48502941,1584.9,1584.8,54.03]
[1745186348565,19.16254693,1584.9,1584.8,59.308]
[1745186348767,21.70972154,1584.9,1584.8,59.308]
[1745186349090,21.70972154,1584.9,1584.8,59.42976549]
[1745186351192,24.56570214,1584.9,1584.8,59.42976549]
[1745186351421,6.31080688,1584.6,1584.1,0.9115]
[1745186351557,6.31080688,1584.6,1584.1,0.1]
[1745186351558,2.38360252,1584.2,1584.1,0.1]
[1745186351763,2.93360252,1584.2,1584.1,0.1]
[1745186351960,3.72970252,1584.2,1584.1,0.1]
[1745186353390,6.51927383,1584.2,1584.1,0.1]
[1745186354997,6.9994262,1584.2,1584.1,0.1]
[1745186355498,7.69936882,1584.2,1584.1,5.378]
[1745186356011,10.69936882,1584.2,1584.1,5.378]
[1745186356309,10.77828352,1584.2,1584.1,5.378]
[1745186360711,9.98218352,1584.2,1584.1,5.378]
[1745186362178,9.2822409,1584.2,1584.1,5.378]
[1745186362381,9.2033262,1584.2,1584.1,5.378]
[1745186365022,1.03015237,1584.2,1584.1,5.378]
[1745186365220,1.03015237,1584.2,1584.1,6.1631]
[1745186366087,11.31317383,1584.6,1584.1,6.22622656]
[1745186366282,6.68284248,1584.6,1584.2,0.7851]
[1745186366519,6.14,1584.6,1584.4,0.7851]
[1745186366722,6.14,1584.6,1584.5,5.279]
[1745186366921,0.07888478,1584.9,1584.6,0.7851]
[1745186367213,5.25205004,1585.0,1584.6,0.84820097]
[1745186367414,4.32587574,1585.1,1584.6,0.84820097]
[1745186367717,4.2470038,1585.1,1584.6,0.7851]
[1745186368619,0.55124909,1585.2,1584.6,0.7851]
[1745186369226,0.55,1585.1,1584.6,0.7851]
[1745186369388,0.55,1585.1,1584.7,0.06309265]
[1745186369589,0.55,1585.1,1584.8,54.06]
[1745186369807,0.55,1585.1,1584.9,6.0435]
[1745186370013,11.31317383,1585.3,1584.9,6.10659267]
[1745186370416,8.17317383,1585.3,1584.9,6.10659267]
[1745186370688,4.32585929,1585.4,1585.0,0.7645]
[1745186370888,4.2470038,1585.4,1585.0,0.82758104]
[1745186371396,5.17317383,1585.5,1585.0,0.82757751]
[1745186371817,5.71523662,1585.5,1585.0,0.7645]
[1745186372512,5.63639174,1585.5,1585.0,0.82757761]
[1745186372711,5.17317383,1585.5,1585.0,0.82757761]
[1745186372914,5.17317383,1585.5,1585.0,0.7645]
[1745186375125,12.14007383,1585.8,1585.1,0.84407766]
[1745186375331,12.14007383,1585.8,1585.2,0.781]
[1745186375332,5.17317383,1585.8,1585.2,0.781]
[1745186375495,5.17317383,1585.8,1585.3,6.058]
[1745186375856,5.17317383,1585.8,1585.4,0.84406578]
[1745186377934,0.07883172,1585.9,1585.4,0.84406578]
[1745186378137,5.2520014,1586.0,1585.4,0.84406578]
[1745186378302,0.55,1585.9,1585.4,0.84406578]
[1745186378506,5.85989154,1586.0,1585.4,0.84406578]
[1745186378817,5.78106397,1586.0,1585.4,0.84406578]
[1745186379011,0.78,1586.2,1585.4,0.781]
[1745186379242,0.07882141,1586.3,1585.4,0.781]
[1745186379410,5.17317383,1586.2,1585.4,0.781]
[1745186379618,5.64276195,1586.2,1585.4,0.781]
[1745186380010,0.55,1586.1,1585.4,0.781]
[1745186380231,5.17317383,1586.0,1585.4,0.781]
[1745186380749,0.6288224,1585.9,1585.4,0.781]
[1745186383649,0.55,1585.9,1585.5,0.81356192]
[1745186383855,0.55,1585.9,1585.6,54.022]
[1745186384053,0.55,1585.9,1585.7,5.275]
[1745186384211,1.13020012,1585.9,1585.7,5.275]
[1745186387639,0.0788274,1586.0,1585.8,54.018]
[1745186388059,0.55,1586.0,1585.8,54.018]
[1745186388362,3.69809858,1586.1,1585.8,54.018]
[1745186389862,3.69809858,1586.1,1585.9,0.7932]
[1745186390068,0.55,1586.1,1585.9,0.7932]
[1745186391035,0.0788144,1586.3,1585.9,0.7932]
[1745186399280,0.0788144,1586.3,1586.0,5.272]
[1745186400583,0.55,1586.2,1586.0,5.272]
[1745186400784,15.02769693,1586.2,1586.1,5.272]
[1745186400992,11.05474352,1586.2,1586.1,5.272]
[1745186401207,5.88156969,1586.2,1586.1,5.272]
[1745186401350,1.55686279,1586.6,1586.1,6.0626]
[1745186401558,6.45554588,1586.6,1586.1,6.0626]
[1745186401886,0.55,1586.2,1585.9,0.7906]
[1745186402089,0.55,1586.0,1585.8,54.018]
[1745186402292,0.55,1586.2,1586.0,6.0626]
[1745186402651,1.84399019,1586.2,1586.0,5.272]
[1745186402883,7.09598072,1586.2,1586.0,5.272]
[1745186403100,4.25959807,1586.1,1586.0,5.272]
[1745186404084,5.06889807,1586.1,1586.0,5.272]
[1745186404281,11.37367078,1586.1,1586.0,5.272]
[1745186404602,5.14772242,1586.1,1586.0,5.272]
[1745186405109,1.43812435,1586.1,1586.0,5.272]
[1745186405274,0.55,1586.1,1586.0,5.272]
[1745186406089,4.3593,1586.1,1586.0,5.272]
[1745186407173,1.3593,1586.1,1586.0,5.272]
[1745186408369,1.43812025,1586.1,1586.0,5.272]
[1745186408567,3.07664377,1586.1,1586.0,5.272]
[1745186408874,12.38141648,1586.1,1586.0,5.272]
[1745186409975,6.30556781,1585.9,1585.8,54.018]
[1745186410165,12.91687672,1585.9,1585.8,59.29]
[1745186410366,1.3593,1585.4,1585.3,54.005]
[1745186410604,9.61132479,1585.4,1585.3,59.277]
[1745186410966,1.3593,1585.0,1584.5,0.7664]
[1745186411197,3.0,1584.8,1584.6,5.272]
[1745186411475,0.55,1584.8,1584.6,5.272]
[1745186411969,0.55,1584.8,1584.7,0.7664]
[1745186413305,0.55,1584.8,1584.6,5.272]
[1745186414100,0.55,1584.8,1584.7,0.7664]
[1745186414462,1.09159767,1585.0,1584.7,0.7664]
[1745186414664,1.63628608,1585.0,1584.7,0.7664]
[1745186414911,0.07887892,1585.1,1584.7,0.82950313]
[1745186415198,0.07886748,1585.2,1584.7,0.82950313]
[1745186415436,0.07886748,1585.2,1584.8,54.024]
[1745186415738,0.55,1585.1,1584.9,0.7664]
[1745186415898,0.55,1585.1,1585.0,5.274]
[1745186416491,6.89245044,1585.1,1585.0,5.274]
[1745186417207,16.20120067,1585.1,1585.0,5.274]
[1745186417828,6.30954634,1584.9,1584.8,54.024]
[1745186418029,15.9208966,1584.9,1584.8,59.356]
[1745186418238,15.84202017,1584.9,1584.8,59.356]
[1745186418532,18.05715356,1584.9,1584.8,59.356]
[1745186419198,0.8095,1584.4,1584.3,54.03]
[1745186419427,5.17317383,1584.4,1584.3,59.362]
[1745186420307,5.72317383,1584.4,1584.3,59.362]
[1745186420925,16.86963812,1584.4,1584.3,59.362]
[1745186422400,10.55810063,1584.4,1584.3,59.362]
[1745186422625,10.63700303,1584.4,1584.3,59.362]
[1745186423099,11.1110907,1584.4,1584.3,59.362]
[1745186423447,5.94397383,1584.6,1584.3,59.362]
[1745186423743,5.17317383,1584.6,1584.3,60.149]
[1745186424338,0.55,1584.5,1584.3,60.149]
[1745186425346,6.86115761,1584.5,1584.3,60.149]
[1745186425502,15.11360563,1584.4,1584.3,54.03]
[1745186425838,10.99069662,1584.4,1584.3,59.363]
[1745186426143,11.06959846,1584.4,1584.3,59.363]
[1745186426315,17.38113595,1584.4,1584.3,59.363]
[1745186426505,17.30223411,1584.4,1584.3,59.363]
[1745186427947,10.99069662,1584.4,1584.3,59.363]
[1745186428241,3.55,1584.4,1584.3,59.363]
[1745186429141,5.17317383,1584.6,1584.3,59.363]
[1745186429441,0.07889645,1584.7,1584.4,0.787]
[1745186429600,5.17317383,1584.8,1584.4,0.787]
[1745186429804,7.08209524,1584.5,1584.3,59.363]
[1745186430024,9.43138335,1584.4,1584.3,59.363]
[1745186430643,9.5102836,1584.4,1584.3,59.363]
[1745186431551,9.97746525,1584.4,1584.3,59.363]
[1745186432755,4.80429142,1584.4,1584.3,59.363]
[1745186432915,1.72539117,1584.4,1584.3,59.363]
[1745186433407,1.01718165,1584.4,1584.3,59.363]
[1745186433861,3.0,1584.5,1584.3,59.363]
[1745186434426,5.17317383,1584.4,1584.3,59.363]
[1745186435527,5.80206875,1584.4,1584.3,59.363]
[1745186436519,0.55,1584.4,1584.3,59.363]
[1745186436721,3.47653851,1584.5,1584.3,59.363]
[1745186437126,4.48147951,1584.5,1584.3,59.363]
[1745186440964,5.03147951,1584.5,1584.4,5.335]
[1745186442460,4.554941,1584.5,1584.4,5.335]
[1745186443332,0.32839666,1584.8,1584.5,0.8038]
[1745186443537,0.55,1584.7,1584.5,0.8038]
[1745186443751,0.54360578,1584.8,1584.5,0.8038]
[1745186443951,0.55,1584.6,1584.5,0.8038]
[1745186444458,0.55,1584.6,1584.4,5.335]
[1745186445059,5.72317383,1584.5,1584.4,5.335]
[1745186446357,8.72317383,1584.5,1584.4,5.335]
[1745186446535,15.03431299,1584.5,1584.4,5.335]
[1745186446948,15.83121299,1584.5,1584.4,5.335]
[1745186448834,9.52007383,1584.5,1584.4,5.335]
[1745186449163,11.23930868,1584.5,1584.4,5.335]
[1745186455339,10.44240868,1584.5,1584.4,5.335]
[1745186458288,8.80207528,1584.5,1584.4,5.335]
[1745186458575,8.72317383,1584.5,1584.4,5.335]
[1745186460689,15.86061299,1584.5,1584.4,5.335]
[1745186464389,16.18908022,1584.5,1584.4,5.335]
[1745186468689,20.43608402,1584.5,1584.4,5.335]
[1745186468894,23.16803004,1584.5,1584.4,5.335]
[1745186469191,9.86153749,1584.4,1584.3,54.03]
[1745186469394,10.69814657,1584.4,1584.3,59.41]
[1745186472498,11.17195766,1584.4,1584.3,59.41]
[1745186482198,11.17195766,1584.4,1584.3,5.38]
[1745186482502,14.16832643,1584.4,1584.3,5.38]
[1745186482708,14.08941735,1584.4,1584.3,5.38]
[1745186483174,9.8623343,1584.2,1584.1,0.1]
[1745186483382,15.94023064,1584.2,1584.1,5.451]
[1745186483578,18.08654341,1584.2,1584.1,5.451]
[1745186484143,6.31352989,1583.9,1583.8,54.07]
[1745186484285,15.11563147,1583.9,1583.8,59.421]
[1745186484472,15.03670372,1583.9,1583.8,59.421]
[1745186484672,18.51482299,1583.9,1583.8,59.421]
[1745186485405,18.97605747,1583.9,1583.8,59.421]
[1745186486110,3.55,1583.5,1583.2,0.7642]
[1745186486277,0.07894865,1583.4,1583.3,5.351]
[1745186486478,5.17317383,1583.4,1583.3,5.351]
[1745186486982,5.72317383,1583.4,1583.3,5.351]
[1745186487309,7.23491392,1583.4,1583.3,5.351]
[1745186487477,10.71177913,1583.4,1583.3,5.351]
[1745186488298,10.79073237,1583.4,1583.3,5.351]
[1745186489481,10.71177913,1583.4,1583.3,5.351]
[1745186489814,17.81940268,1583.4,1583.3,5.351]
[1745186493021,17.81940268,1583.4,1583.1,54.173]
[1745186493199,3.55,1582.9,1582.6,0.8055]
[1745186493404,5.72317383,1582.7,1582.6,0.8055]
[1745186493604,5.72317383,1582.7,1582.6,6.1585]
[1745186494237,6.31907305,1582.6,1582.1,0.8541]
[1745186494397,0.62900526,1582.5,1582.4,0.7541]
[1745186494605,0.55,1582.4,1582.3,5.353]
[1745186494911,3.62900041,1582.4,1582.3,5.353]
[1745186495336,3.55,1582.4,1582.3,5.353]
[1745186495546,0.55,1582.4,1582.3,5.353]
[1745186495743,15.83268849,1582.4,1582.3,5.353]
[1745186495939,18.60938184,1582.4,1582.3,5.353]
[1745186497350,6.8715121,1581.9,1581.8,54.092]
[1745186497556,15.04468593,1581.9,1581.8,59.446]
[1745186497705,8.72317383,1581.9,1581.8,59.446]
[1745186497917,0.55,1581.9,1581.8,60.2001]
[1745186498117,5.17317383,1582.0,1581.8,60.2001]
[1745186499052,5.17317383,1582.3,1581.9,0.8173135]
[1745186499429,5.17317383,1582.3,1581.9,0.7541]
[1745186500759,8.17317383,1582.3,1581.9,0.7541]
[1745186501454,5.17317383,1582.3,1581.9,0.7541]
[1745186501692,5.17317383,1582.3,1582.0,0.8173019]
[1745186501958,0.55,1582.4,1582.0,0.7541]
[1745186502155,5.17317383,1582.7,1582.2,0.7541]
[1745186502355,5.80501113,1582.7,1582.4,0.7541]
[1745186503029,5.17317383,1582.8,1582.6,0.7541]
[1745186503352,11.48970105,1583.2,1582.7,5.356]
[1745186503353,0.07898042,1583.0,1582.7,5.356]
[1745186503562,5.17317383,1583.0,1582.8,0.7541]
[1745186503766,5.17317383,1583.3,1582.8,0.7541]
[1745186504467,0.55,1583.2,1582.8,0.7541]
[1745186509773,0.55,1583.2,1582.9,0.06316275]
[1745186510067,5.17317383,1583.3,1583.0,0.7773]
[1745186510273,5.17317383,1583.3,1583.1,5.355]
[1745186513486,6.05338639,1583.3,1583.1,5.355]
[1745186516286,0.55,1583.2,1583.1,5.355]
[1745186517592,3.55,1583.2,1583.1,5.355]
[1745186517758,9.86733985,1583.0,1582.8,5.354]
[1745186517958,8.8021501,1582.9,1582.8,5.354]
[1745186518190,9.68236511,1582.9,1582.8,5.354]
[1745186519086,15.99988358,1582.9,1582.8,5.354]
[1745186519257,9.60338884,1582.9,1582.8,5.354]
[1745186519457,9.68236764,1582.9,1582.8,5.354]
[1745186520892,9.60338884,1582.9,1582.8,5.354]
[1745186521595,9.13236533,1582.9,1582.8,5.354]
[1745186521790,15.92090731,1582.9,1582.8,5.354]
[1745186521956,16.69780731,1582.9,1582.8,5.354]
[1745186522160,3.55,1582.5,1582.4,5.355]
[1745186522401,3.55,1582.2,1582.0,5.355]
[1745186522705,3.62901683,1582.1,1582.0,5.355]
[1745186523194,3.55,1581.9,1581.7,5.355]
[1745186523396,8.80220267,1581.8,1581.7,5.355]
[1745186523593,0.7769,1582.2,1581.7,5.355]
[1745186523793,0.55,1582.0,1581.7,5.355]
[1745186524300,0.07902095,1581.9,1581.7,5.355]
[1745186524467,0.55,1581.8,1581.7,5.355]
[1745186525318,0.07902095,1581.9,1581.7,5.355]
[1745186525665,0.62903025,1582.0,1581.7,5.355]
[1745186525865,1.3712603,1582.0,1581.7,5.355]
[1745186526266,0.62903025,1582.0,1581.7,5.355]
[1745186526969,6.32179692,1581.9,1581.7,5.355]
[1745186527199,0.62902855,1581.8,1581.7,5.355]
[1745186527502,3.7503,1582.1,1581.7,6.1776]
[1745186527672,3.7924081,1582.5,1581.8,0.06321738]
[1745186528066,3.7924081,1582.5,1581.9,0.8226]
[1745186528321,0.55,1582.0,1581.7,5.355]
[1745186528520,0.55,1582.0,1581.7,6.1776]
[1745186528888,0.07902013,1582.1,1581.7,6.1776]
[1745186529088,0.07901813,1582.1,1581.7,6.1776]
[1745186529290,0.55,1582.0,1581.7,6.1776]
[1745186529829,0.07901813,1582.1,1581.7,6.1776]
[1745186530000,0.07901815,1582.4,1581.8,0.8226]
[1745186530203,0.7503,1582.5,1581.8,0.8226]
[1745186530912,0.0789987,1582.6,1581.8,0.8226]
[1745186531226,0.55,1582.5,1581.8,0.8226]
[1745186532213,3.55,1582.3,1581.8,0.8226]
[1745186532403,0.07901309,1582.2,1581.8,0.88579902]
[1745186532618,0.36290131,1582.2,1581.8,0.8226]
[1745186532924,0.55,1582.1,1581.8,0.8226]
[1745186533498,9.39839972,1582.5,1581.8,0.8226]
[1745186533696,0.55,1582.2,1581.8,0.8226]
[1745186533903,0.07901925,1582.1,1581.7,5.355]
[1745186534098,13.66366017,1582.0,1581.7,5.355]
[1745186534321,0.55,1581.8,1581.7,5.355]
[1745186535515,0.62902785,1582.0,1581.7,5.355]
[1745186536037,1.3003,1581.8,1581.3,0.8226]
[1745186536236,1.3003,1581.8,1581.4,5.546]
[1745186536237,0.62904379,1581.7,1581.4,5.546]
[1745186536527,0.55,1581.5,1581.4,5.546]
[1745186536728,1.61633543,1581.5,1581.4,5.546]
[1745186536936,0.6290482,1581.5,1581.4,5.546]
[1745186537133,0.55,1581.5,1581.4,5.546]
[1745186537900,0.07904513,1581.7,1581.4,5.546]
[1745186538227,0.62904513,1581.7,1581.4,5.546]
[1745186538614,0.55,1581.6,1581.4,5.546]
[1745186538800,0.0790451,1581.5,1581.4,5.546]
[1745186539432,0.6290451,1581.6,1581.4,5.546]
[1745186540551,10.73495627,1581.6,1581.5,0.16574311]
[1745186541257,11.21680393,1581.6,1581.5,0.16574311]
[1745186541814,11.21680393,1581.6,1581.2,54.5090727]
[1745186542030,0.55,1581.4,1581.2,54.5090727]
[1745186542243,0.07905495,1581.3,1581.2,54.5090727]
[1745186543075,0.55,1581.4,1581.2,54.5090727]
[1745186546140,3.80679233,1581.8,1581.3,0.89443847]
[1745186546453,0.55,1581.6,1581.3,0.8312]
[1745186546658,0.55,1581.3,1581.2,54.5090727]
[1745186546848,0.43567923,1581.3,1581.2,54.5090727]
[1745186547053,0.55,1581.5,1581.2,54.5090727]
[1745186547949,3.0,1581.5,1581.2,54.5090727]
[1745186548274,0.55,1581.3,1581.2,54.5090727]
[1745186548876,6.79637806,1581.6,1581.2,54.5090727]
[1745186548877,3.55,1581.6,1581.2,54.5090727]
[1745186549077,0.55,1581.4,1581.2,54.5090727]
[1745186549375,10.91174024,1581.9,1581.3,0.89444111]
[1745186549677,3.80679233,1581.7,1581.3,0.8312]
[1745186549864,0.62904692,1581.6,1581.3,0.8312]
[1745186550180,1.41224692,1581.6,1581.3,0.8312]
[1745186550344,1.41224692,1581.6,1581.2,54.5090727]
[1745186550542,0.55,1581.4,1581.2,54.5090727]
[1745186550744,14.54295823,1581.3,1581.2,0.4010727]
[1745186550946,4.3332,1581.3,1581.2,0.4010727]
[1745186551277,10.73617063,1581.3,1581.2,0.55680941]
[1745186551454,4.41225993,1581.3,1581.2,0.55680941]
[1745186551658,10.73617063,1581.3,1581.2,0.4010727]
[1745186551859,19.6503984,1581.3,1581.2,0.55680941]
[1745186552083,19.57133847,1581.3,1581.2,0.4010727]
[1745186552798,0.7832,1581.1,1580.7,0.005]
[1745186552945,4.35679233,1580.8,1580.7,0.005]
[1745186553151,21.40294364,1580.8,1580.7,0.005]
[1745186553365,21.32388249,1580.8,1580.7,0.005]
[1745186553683,14.99797156,1580.8,1580.7,0.005]
[1745186553870,25.13067482,1580.8,1580.7,0.005]
[1745186554071,7.64261167,1580.5,1580.4,0.015]
[1745186554258,20.589404,1580.5,1580.4,0.015]